[Event "Austrian Championship Girls-U14 2024"]
[Site "Fuerstenfeld"]
[Date "2024.05.31"]
[Round "3.2"]
[White "Huber, Elisa"]
[Black "Turdiyeva, Maryam"]
[Result "1/2-1/2"]
[ECO "A46"]
[WhiteElo "1633"]
[BlackElo "1682"]
[Annotator "NA RC"]
[PlyCount "36"]
[EventDate "2024.05.28"]
[EventType "swiss"]
[EventCountry "AUT"]
[SourceTitle "playchess.com"]
[Source "ChessBase"]
[SourceQuality "1"]
[TimeControl "5400+30"]

1. d4 {[%emt 0:00:01]} Nf6 {[%emt 0:00:08]} 2. Bf4 {[%emt 0:00:06]} d6 {[%emt 0:00:08]} 3. e3 {[%emt 0:00:08]} Nbd7 {[%emt 0:00:22]} 4. Nf3 {[%emt 0:00:22]} c5 {[%emt 0:00:18]} 5. c3 {[%emt 0:00:11]} Qb6 {[%emt 0:00:56]} 6. Qb3 {[%emt 0:01:45]} g6 {[%emt 0:04:06]} 7. Nbd2 {[%emt 0:06:13]} Bg7 {[%emt 0:00:58]} 8. Be2 {[%emt 0:01:45]} O-O {[%emt 0:00:48]} 9. h3 {[%emt 0:02:31]} Re8 {[%emt 0:07:17]} 10. Bh2 {[%emt 0:09:42]} Qxb3 {[%emt 0:16:23]} 11. axb3 {[%emt 0:00:57]} b6 {[%emt 0:01:03]} 12. O-O {[%emt 0:02:38]} Bb7 {[%emt 0:01:46]} 13. Ba6 {[%emt 0:17:39]} Bc6 {[%emt 0:05:15]} 14. Rfe1 {[%emt 0:12:56]} Nb8 {[%emt 0:24:18]} 15. Bd3 {[%emt 0:04:09]} Nbd7 {[%emt 0:04:04]} 16. Ba6 {[%emt 0:05:06]} Nb8 {[%emt 0:06:47]} 17. Bd3 {[%emt 0:00:53]} Nbd7 {[%emt 0:03:31]} 18. Ba6 {[%emt 0:00:26]} Nb8 {[%emt 0:04:30]} 1/2-1/2

[Event "Austrian Championship Girls-U14 2024"]
[Site "Fuerstenfeld"]
[Date "2024.05.31"]
[Round "3.3"]
[White "Aboulenein-Djamshidian, Kimia"]
[Black "Wang, Yihan"]
[Result "1-0"]
[ECO "D35"]
[WhiteElo "1547"]
[BlackElo "1516"]
[Annotator "NA RC"]
[PlyCount "173"]
[EventDate "2024.05.28"]
[EventType "swiss"]
[EventCountry "AUT"]
[SourceTitle "playchess.com"]
[Source "ChessBase"]
[SourceQuality "1"]
[TimeControl "5400+30"]

1. d4 {[%emt 0:00:05]} d5 {[%emt 0:00:10]} 2. c4 {[%emt 0:00:19]} e6 {[%emt 0:00:18]} 3. Nc3 {[%emt 0:00:10]} Nf6 {[%emt 0:00:25]} 4. Bf4 {[%emt 0:00:47]} Bd6 {[%emt 0:00:50]} 5. Bg3 {[%emt 0:01:00]} b6 {[%emt 0:01:17]} 6. e3 {[%emt 0:00:41]} Bb7 {[%emt 0:01:31]} 7. Nf3 {[%emt 0:00:57]} Bxg3 {[%emt 0:01:09]} 8. hxg3 {[%emt 0:00:16]} Nbd7 {[%emt 0:01:13]} 9. Be2 {[%emt 0:01:40]} c5 {[%emt 0:02:29]} 10. Rc1 {[%emt 0:07:30]} Rc8 {[%emt 0:03:10]} 11. Nb5 {[%emt 0:10:31]} Ke7 {[%emt 0:08:20]} 12. cxd5 {[%emt 0:13:26]} Bxd5 {[%emt 0:13:33]} 13. Bc4 {[%emt 0:03:09]} a5 {[%emt 0:03:59]} 14. Bxd5 {[%emt 0:01:34]} exd5 {[%emt 0:01:21]} 15. Ne5 {[%emt 0:02:33]} Nxe5 {[%emt 0:03:30]} 16. dxe5 {[%emt 0:01:05]} Ne8 {[%emt 0:02:00]} 17. Qg4 {[%emt 0:02:20]} Qd7 {[%emt 0:05:01]} 18. Qh4+ {[%emt 0:01:52]} Kf8 {[%emt 0:02:12]} 19. a4 {[%emt 0:02:43]} Qe6 {[%emt 0:05:44]} 20. Qf4 {[%emt 0:04:50]} f6 {[%emt 0:04:20]} 21. exf6 {[%emt 0:04:26]} Qxf6 {[%emt 0:00:49]} 22. Qg4 {[%emt 0:00:40]} Rd8 {[%emt 0:01:32]} 23. O-O {[%emt 0:02:24]} g6 {[%emt 0:03:58]} 24. Rfe1 {[%emt 0:04:17]} Kg7 {[%emt 0:04:37]} 25. e4 {[%emt 0:02:09]} Rf8 {[%emt 0:08:18]} 26. Re2 {[%emt 0:01:30]} dxe4 {[%emt 0:01:42]} 27. Qxe4 {[%emt 0:01:48]} Rf7 {[%emt 0:02:28]} 28. Rce1 {[%emt 0:01:47]} Nd6 {[%emt 0:02:01]} 29. Nxd6 {[%emt 0:01:14]} Rxd6 {[%emt 0:00:21]} 30. Qe8 {[%emt 0:01:00]} g5 {[%emt 0:01:35]} 31. Qe5 {[%emt 0:05:57]} Qxe5 {[%emt 0:01:15]} 32. Rxe5 {[%emt 0:00:08]} Kg6 {[%emt 0:00:25]} 33. Kf1 {[%emt 0:00:47]} h6 {[%emt 0:01:15]} 34. Re6+ {[%emt 0:01:01]} Rxe6 {[%emt 0:00:12]} 35. Rxe6+ {[%emt 0:00:09]} Rf6 {[%emt 0:00:16]} 36. Re4 {[%emt 0:00:35]} Rd6 {[%emt 0:00:37]} 37. Ke2 {[%emt 0:00:10]} Kf6 {[%emt 0:00:37]} 38. g4 {[%emt 0:00:55]} Rd7 {[%emt 0:01:09]} 39. g3 {[%emt 0:00:47]} Rb7 {[%emt 0:01:49]} 40. Kd3 {[%emt 0:00:41]} b5 {[%emt 0:00:40]} 41. Kc3 {[%emt 0:00:44]} Rb8 {[%emt 0:00:53]} 42. b3 {[%emt 0:02:20]} c4 {[%emt 0:03:16]} 43. f4 {[%emt 0:04:59]} bxa4 {[%emt 0:05:53]} 44. bxa4 {[%emt 0:00:26]} Rb3+ {[%emt 0:00:23]} 45. Kxc4 {[%emt 0:00:20]} Rb4+ {[%emt 0:00:11]} 46. Kd5 {[%emt 0:00:49]} Rb3 {[%emt 0:00:58]} 47. Re6+ {[%emt 0:00:36]} Kg7 {[%emt 0:00:31]} 48. fxg5 {[%emt 0:04:17]} hxg5 {[%emt 0:00:20]} 49. Re5 {[%emt 0:00:18]} Ra3 {[%emt 0:01:50]} 50. Re4 {[%emt 0:01:22]} Rxg3 {[%emt 0:00:50]} 51. Kc5 {[%emt 0:00:16]} Rb3 {[%emt 0:00:33]} 52. Kd6 {[%emt 0:01:06]} Rb4 {[%emt 0:00:52]} 53. Ke5 {[%emt 0:00:26]} Rb6 {[%emt 0:01:00]} 54. Kd5 {[%emt 0:00:15]} Kf6 {[%emt 0:00:29]} 55. Kc5 {[%emt 0:00:27]} Rb8 {[%emt 0:00:20]} 56. Rd4 {[%emt 0:00:24]} Rh8 {[%emt 0:00:57]} 57. Kb6 {[%emt 0:00:14]} Ke5 {[%emt 0:00:26]} 58. Rc4 {[%emt 0:00:21]} Rh4 {[%emt 0:00:29]} 59. Kxa5 {[%emt 0:00:10]} Kd5 {[%emt 0:00:10]} 60. Rb4 {[%emt 0:00:07]} Kc6 {[%emt 0:00:18]} 61. Ka6 {[%emt 0:00:26]} Rh8 {[%emt 0:00:16]} 62. Rb6+ {[%emt 0:00:10]} Kc7 {[%emt 0:00:09]} 63. Rb7+ {[%emt 0:00:40]} Kc6 {[%emt 0:00:06]} 64. Rb6+ {[%emt 0:00:34]} Kc7 {[%emt 0:00:06]} 65. a5 {[%emt 0:00:08]} Rg8 {[%emt 0:00:55]} 66. Kb5 {[%emt 0:00:16]} Ra8 {[%emt 0:00:35]} 67. a6 {[%emt 0:00:18]} Ra7 {[%emt 0:00:33]} 68. Rg6 {[%emt 0:00:10]} Ra8 {[%emt 0:00:24]} 69. Rg7+ {[%emt 0:00:14]} Kd6 {[%emt 0:00:54]} 70. Rg6+ {[%emt 0:00:38]} Kc7 {[%emt 0:00:14]} 71. Rg7+ {[%emt 0:00:38]} Kd6 {[%emt 0:00:12]} 72. a7 {[%emt 0:00:05]} Ke5 {[%emt 0:00:15]} 73. Kb6 {[%emt 0:00:07]} Kf4 {[%emt 0:00:22]} 74. Kb7 {[%emt 0:00:20]} Rxa7+ {[%emt 0:00:18]} 75. Kxa7 {[%emt 0:00:05]} Kxg4 {[%emt 0:00:06]} 76. Kb6 {[%emt 0:00:26]} Kf4 {[%emt 0:00:21]} 77. Rf7+ {[%emt 0:00:10]} Kg3 {[%emt 0:00:29]} 78. Kc5 {[%emt 0:00:12]} g4 {[%emt 0:00:43]} 79. Kd4 {[%emt 0:00:05]} Kg2 {[%emt 0:00:32]} 80. Ke3 {[%emt 0:00:07]} Kh2 {[%emt 0:01:53]} 81. Rh7+ {[%emt 0:00:17]} Kg2 {[%emt 0:00:19]} 82. Kf4 {[%emt 0:00:07]} g3 {[%emt 0:00:13]} 83. Rg7 {[%emt 0:00:05]} Kh2 {[%emt 0:00:17]} 84. Rxg3 {[%emt 0:00:06]} Kh1 {[%emt 0:00:06]} 85. Kf3 {[%emt 0:00:06]} Kh2 {[%emt 0:00:09]} 86. Kf2 {[%emt 0:00:05]} Kh1 {[%emt 0:00:07]} 87. Rh3# {[%emt 0:17:35]} 1-0

[Event "Austrian Championship Girls-U14 2024"]
[Site "Fuerstenfeld"]
[Date "2024.05.31"]
[Round "4.1"]
[White "Knittel-Templ, Paula"]
[Black "Aboulenein-Djamshidian, Kimia"]
[Result "1/2-1/2"]
[ECO "D02"]
[WhiteElo "1599"]
[BlackElo "1547"]
[Annotator "NA RC"]
[PlyCount "135"]
[EventDate "2024.05.28"]
[EventType "swiss"]
[EventCountry "AUT"]
[SourceTitle "playchess.com"]
[Source "ChessBase"]
[SourceQuality "1"]
[TimeControl "5400+30"]

1. Nf3 {[%emt 0:00:02]} d5 {[%emt 0:00:30]} 2. d4 {[%emt 0:00:06]} Bf5 {[%emt 0:00:30]} 3. Bf4 {[%emt 0:00:43]} e6 {[%emt 0:00:42]} 4. e3 {[%emt 0:00:24]} c5 {[%emt 0:01:56]} 5. Bb5+ {[%emt 0:00:27]} Nc6 {[%emt 0:00:31]} 6. Ne5 {[%emt 0:00:55]} Qb6 {[%emt 0:02:00]} 7. Bxc6+ {[%emt 0:01:41]} bxc6 {[%emt 0:00:22]} 8. b3 {[%emt 0:01:05]} Nf6 {[%emt 0:01:14]} 9. O-O {[%emt 0:04:58]} Be7 {[%emt 0:00:46]} 10. Nc3 {[%emt 0:01:49]} cxd4 {[%emt 0:02:19]} 11. exd4 {[%emt 0:01:57]} O-O {[%emt 0:00:34]} 12. Bg5 {[%emt 0:01:42]} Qc7 {[%emt 0:04:31]} 13. Bxf6 {[%emt 0:05:09]} Bxf6 {[%emt 0:05:10]} 14. Ng4 {[%emt 0:02:29]} Be7 {[%emt 0:01:50]} 15. Ne3 {[%emt 0:01:30]} Bg6 {[%emt 0:00:57]} 16. Ne2 {[%emt 0:00:42]} c5 {[%emt 0:03:01]} 17. c4 {[%emt 0:00:14]} cxd4 {[%emt 0:00:45]} 18. Nxd4 {[%emt 0:00:36]} dxc4 {[%emt 0:04:10]} 19. Nb5 {[%emt 0:05:31]} Qc5 {[%emt 0:06:15]} 20. bxc4 {[%emt 0:02:07]} Bf6 {[%emt 0:02:08]} 21. Rc1 {[%emt 0:08:26]} Bb2 {[%emt 0:02:50]} 22. Qd6 {[%emt 0:01:30]} Qxd6 {[%emt 0:00:55]} 23. Nxd6 {[%emt 0:00:06]} Bxc1 {[%emt 0:00:29]} 24. Rxc1 {[%emt 0:00:06]} Rfd8 {[%emt 0:00:39]} 25. c5 {[%emt 0:00:20]} Bd3 {[%emt 0:03:25]} 26. Ng4 {[%emt 0:00:29]} f6 {[%emt 0:03:30]} 27. h3 {[%emt 0:02:06]} Bf5 {[%emt 0:02:36]} 28. Kh2 {[%emt 0:00:27]} Bxg4 {[%emt 0:00:53]} 29. hxg4 {[%emt 0:00:08]} Kf8 {[%emt 0:00:45]} 30. f4 {[%emt 0:00:20]} a5 {[%emt 0:01:10]} 31. f5 {[%emt 0:00:16]} e5 {[%emt 0:00:55]} 32. Rc3 {[%emt 0:01:09]} a4 {[%emt 0:01:46]} 33. a3 {[%emt 0:00:27]} Rd7 {[%emt 0:00:41]} 34. Rc4 {[%emt 0:01:41]} Ra5 {[%emt 0:00:52]} 35. c6 {[%emt 0:01:37]} Rc7 {[%emt 0:01:23]} 36. Rb4 {[%emt 0:08:53]} Rxc6 {[%emt 0:02:27]} 37. Rb8+ {[%emt 0:00:11]} Ke7 {[%emt 0:00:16]} 38. Ne4 {[%emt 0:01:17]} Ra7 {[%emt 0:02:07]} 39. Rh8 {[%emt 0:00:59]} h6 {[%emt 0:01:54]} 40. g5 {[%emt 0:00:20]} hxg5 {[%emt 0:00:37]} 41. Kg3 {[%emt 0:01:11]} Rc2 {[%emt 0:02:19]} 42. Rh7 {[%emt 0:00:59]} Kd8 {[%emt 0:02:09]} 43. Nxf6 {[%emt 0:00:54]} Rc3+ {[%emt 0:01:19]} 44. Kg4 {[%emt 0:00:15]} Rxa3 {[%emt 0:00:20]} 45. Rh8+ {[%emt 0:00:19]} Ke7 {[%emt 0:01:00]} 46. Ne4 {[%emt 0:44:57]} Re3 {[%emt 0:00:37]} 47. f6+ {[%emt 0:00:00]} gxf6 {[%emt 0:13:02]} 48. Rh7+ {[%emt 0:00:00]} Kd8 {[%emt 0:00:09]} 49. Rxa7 {[%emt 0:00:00]} Rxe4+ {[%emt 0:00:09]} 50. Kf5 {[%emt 0:00:00]} Rf4+ {[%emt 0:00:52]} 51. Ke6 {[%emt 0:00:00]} Kc8 {[%emt 0:00:16]} 52. Kd6 {[%emt 0:00:00]} Kb8 {[%emt 0:00:39]} 53. Rh7 {[%emt 0:00:00]} e4 {[%emt 0:00:33]} 54. Kc6 {[%emt 0:00:00]} e3 {[%emt 0:00:56]} 55. Re7 {[%emt 0:00:00]} Rb4 {[%emt 0:02:04]} 56. Rxe3 {[%emt 0:00:00]} Ka7 {[%emt 0:01:30]} 57. Ra3 {[%emt 0:00:00]} Ka6 {[%emt 0:00:18]} 58. Rf3 {[%emt 0:00:00]} Rb6+ {[%emt 0:00:22]} 59. Kc5 {[%emt 0:00:00]} Ka5 {[%emt 0:00:33]} 60. Rd3 {[%emt 0:00:00]} Rb3 {[%emt 0:01:40]} 61. Rd8 {[%emt 0:00:00]} Rc3+ {[%emt 0:00:34]} 62. Kd4 {[%emt 0:00:00]} Rb3 {[%emt 0:00:52]} 63. Kc4 {[%emt 0:00:00]} Rb4+ {[%emt 0:02:48]} 64. Kc5 {[%emt 0:00:00]} Rb6 {[%emt 0:00:25]} 65. Ra8+ {[%emt 0:00:00]} Ra6 {[%emt 0:00:07]} 66. Rb8 {[%emt 0:00:00]} Re6 {[%emt 0:03:48]} 67. Ra8+ {[%emt 0:00:00]} Ra6 {[%emt 0:00:05]} 68. Rb8 {[%emt 0:00:00]} 1/2-1/2

[Event "Austrian Championship Girls-U14 2024"]
[Site "Fuerstenfeld"]
[Date "2024.05.31"]
[Round "4.2"]
[White "Wiessner, Elisabeth"]
[Black "Huber, Elisa"]
[Result "1-0"]
[ECO "C22"]
[WhiteElo "1572"]
[BlackElo "1633"]
[Annotator "NA RC"]
[PlyCount "107"]
[EventDate "2024.05.28"]
[EventType "swiss"]
[EventCountry "AUT"]
[SourceTitle "playchess.com"]
[Source "ChessBase"]
[SourceQuality "1"]
[TimeControl "5400+30"]

1. e4 {[%emt 0:00:03]} e5 {[%emt 0:00:07]} 2. d4 {[%emt 0:00:12]} exd4 {[%emt 0:00:06]} 3. Qxd4 {[%emt 0:00:06]} Nc6 {[%emt 0:00:16]} 4. Qe3 {[%emt 0:00:12]} d6 {[%emt 0:01:35]} 5. Nc3 {[%emt 0:00:42]} Nf6 {[%emt 0:03:02]} 6. Bd2 {[%emt 0:01:01]} Be7 {[%emt 0:02:10]} 7. O-O-O {[%emt 0:02:22]} Be6 {[%emt 0:08:47]} 8. f4 {[%emt 0:03:27]} Ng4 {[%emt 0:09:20]} 9. Qe1 {[%emt 0:05:48]} f5 {[%emt 0:08:19]} 10. h3 {[%emt 0:05:48]} Nf6 {[%emt 0:01:35]} 11. exf5 {[%emt 0:06:08]} Bxf5 {[%emt 0:00:27]} 12. g4 {[%emt 0:00:43]} Bg6 {[%emt 0:05:02]} 13. Nf3 {[%emt 0:10:31]} Qd7 {[%emt 0:19:21]} 14. Bc4 {[%emt 0:08:16]} Bf7 {[%emt 0:14:50]} 15. Bxf7+ {[%emt 0:01:13]} Kxf7 {[%emt 0:00:10]} 16. Ng5+ {[%emt 0:01:17]} Kg8 {[%emt 0:04:40]} 17. Nb5 {[%emt 0:07:03]} Ne8 {[%emt 0:06:31]} 18. Ne6 {[%emt 0:04:38]} Nd8 {[%emt 0:03:55]} 19. Nxd8 {[%emt 0:03:13]} Bxd8 {[%emt 0:01:29]} 20. Qe2 {[%emt 0:02:36]} c6 {[%emt 0:01:30]} 21. Nd4 {[%emt 0:04:47]} Nc7 {[%emt 0:01:20]} 22. Nf5 {[%emt 0:08:18]} Bf6 {[%emt 0:01:20]} 23. Bb4 {[%emt 0:02:27]} d5 {[%emt 0:01:39]} 24. Qd3 {[%emt 0:02:49]} Ne6 {[%emt 0:01:33]} 25. Rhf1 {[%emt 0:01:49]} c5 {[%emt 0:01:05]} 26. Be1 {[%emt 0:04:37]} d4 {[%emt 0:00:56]} 27. Bg3 {[%emt 0:03:05]} Kf7 {[%emt 0:00:47]} 28. g5 {[%emt 0:00:40]} Be7 {[%emt 0:00:29]} 29. Nxe7 {[%emt 0:01:24]} Qxe7 {[%emt 0:00:27]} 30. Qf5+ {[%emt 0:00:33]} Ke8 {[%emt 0:00:28]} 31. Rfe1 {[%emt 0:00:40]} Kd7 {[%emt 0:00:26]} 32. Qd5+ {[%emt 0:00:29]} Qd6 {[%emt 0:00:18]} 33. Qxd6+ {[%emt 0:00:07]} Kxd6 {[%emt 0:00:05]} 34. f5+ {[%emt 0:00:16]} Nf4 {[%emt 0:00:23]} 35. Bxf4+ {[%emt 0:00:05]} Kd7 {[%emt 0:00:30]} 36. c3 {[%emt 0:00:24]} Rac8 {[%emt 0:00:37]} 37. Kb1 {[%emt 0:00:23]} Rce8 {[%emt 0:01:24]} 38. Rxe8 {[%emt 0:00:18]} Rxe8 {[%emt 0:00:04]} 39. cxd4 {[%emt 0:00:18]} c4 {[%emt 0:00:35]} 40. Be5 {[%emt 0:00:19]} Re7 {[%emt 0:00:32]} 41. Rg1 {[%emt 0:00:54]} g6 {[%emt 0:00:48]} 42. f6 {[%emt 0:00:23]} Rf7 {[%emt 0:00:11]} 43. Kc2 {[%emt 0:00:53]} Kc6 {[%emt 0:00:28]} 44. Re1 {[%emt 0:01:33]} b5 {[%emt 0:01:00]} 45. b3 {[%emt 0:01:04]} cxb3+ {[%emt 0:00:20]} 46. Kxb3 {[%emt 0:00:20]} Kb6 {[%emt 0:00:27]} 47. Rc1 {[%emt 0:00:25]} Rf8 {[%emt 0:01:42]} 48. Rc7 {[%emt 0:00:28]} a5 {[%emt 0:00:24]} 49. Rxh7 {[%emt 0:01:08]} Kc6 {[%emt 0:00:39]} 50. Rg7 {[%emt 0:01:02]} Kd5 {[%emt 0:00:33]} 51. Rxg6 {[%emt 0:00:40]} Rf7 {[%emt 0:00:34]} 52. Rg7 {[%emt 0:00:16]} Rf8 {[%emt 0:00:38]} 53. g6 {[%emt 0:00:34]} Ke6 {[%emt 0:00:29]} 54. f7 {[%emt 0:01:28]} 1-0

[Event "Austrian Championship Girls-U14 2024"]
[Site "Fuerstenfeld"]
[Date "2024.05.31"]
[Round "4.3"]
[White "Turdiyeva, Maryam"]
[Black "Brunner, Josephina Akiko"]
[Result "1/2-1/2"]
[ECO "D00"]
[WhiteElo "1682"]
[BlackElo "1744"]
[Annotator "NA RC"]
[PlyCount "159"]
[EventDate "2024.05.28"]
[EventType "swiss"]
[EventCountry "AUT"]
[SourceTitle "playchess.com"]
[Source "ChessBase"]
[SourceQuality "1"]
[TimeControl "5400+30"]

1. d4 {[%emt 0:00:03]} Nf6 {[%emt 0:00:13]} 2. Nf3 {[%emt 0:00:08]} g6 {[%emt 0:00:16]} 3. Nc3 {[%emt 0:01:15]} d5 {[%emt 0:00:19]} 4. Bf4 {[%emt 0:00:36]} Bg7 {[%emt 0:00:53]} 5. e3 {[%emt 0:01:01]} O-O {[%emt 0:00:56]} 6. Be2 {[%emt 0:00:56]} c5 {[%emt 0:01:03]} 7. O-O {[%emt 0:01:19]} cxd4 {[%emt 0:00:40]} 8. exd4 {[%emt 0:01:30]} Nc6 {[%emt 0:00:44]} 9. Re1 {[%emt 0:04:56]} Bf5 {[%emt 0:08:43]} 10. h3 {[%emt 0:10:17]} Ne4 {[%emt 0:36:10]} 11. Bd3 {[%emt 0:27:35]} Nxc3 {[%emt 0:07:23]} 12. bxc3 {[%emt 0:00:49]} Bxd3 {[%emt 0:00:50]} 13. cxd3 {[%emt 0:02:19]} Rc8 {[%emt 0:08:08]} 14. Qb3 {[%emt 0:06:03]} Qd7 {[%emt 0:09:07]} 15. Rab1 {[%emt 0:06:58]} b6 {[%emt 0:02:09]} 16. Rbc1 {[%emt 0:04:11]} Na5 {[%emt 0:01:46]} 17. Qa3 {[%emt 0:03:03]} Rfe8 {[%emt 0:00:53]} 18. Ne5 {[%emt 0:03:20]} Bxe5 {[%emt 0:03:47]} 19. Rxe5 {[%emt 0:03:01]} Nc6 {[%emt 0:00:33]} 20. Re3 {[%emt 0:02:10]} Qf5 {[%emt 0:01:23]} 21. Rf3 {[%emt 0:02:35]} Qd7 {[%emt 0:00:13]} 22. h4 {[%emt 0:04:13]} e5 {[%emt 0:01:08]} 23. dxe5 {[%emt 0:03:20]} Nxe5 {[%emt 0:00:07]} 24. Rg3 {[%emt 0:01:07]} Ng4 {[%emt 0:02:04]} 25. Qb2 {[%emt 0:06:09]} Qe6 {[%emt 0:04:28]} 26. Qd2 {[%emt 0:01:47]} Nf6 {[%emt 0:01:40]} 27. Bg5 {[%emt 0:00:52]} Nh5 {[%emt 0:01:19]} 28. Re3 {[%emt 0:00:20]} Qd7 {[%emt 0:01:13]} 29. Rce1 {[%emt 0:00:15]} Rxe3 {[%emt 0:00:33]} 30. Qxe3 {[%emt 0:00:39]} Ng7 {[%emt 0:00:42]} 31. Qd4 {[%emt 0:00:22]} Ne6 {[%emt 0:01:29]} 32. Qe5 {[%emt 0:00:55]} Nxg5 {[%emt 0:00:18]} 33. hxg5 {[%emt 0:00:23]} Qc7 {[%emt 0:04:05]} 34. Qd4 {[%emt 0:01:07]} Qd7 {[%emt 0:00:50]} 35. Re3 {[%emt 0:00:41]} Qd8 {[%emt 0:01:12]} 36. Qh4 {[%emt 0:00:42]} h5 {[%emt 0:00:38]} 37. Rh3 {[%emt 0:00:36]} Kg7 {[%emt 0:00:21]} 38. g4 {[%emt 0:00:58]} Qh8 {[%emt 0:00:21]} 39. gxh5 {[%emt 0:00:31]} gxh5 {[%emt 0:01:23]} 40. Qd4+ {[%emt 0:00:45]} Kg6 {[%emt 0:00:00]} 41. Qxd5 {[%emt 0:00:19]} Qxc3 {[%emt 0:00:11]} 42. Qd6+ {[%emt 0:00:43]} Kg7 {[%emt 0:00:40]} 43. Qh6+ {[%emt 0:00:29]} Kg8 {[%emt 0:00:02]} 44. Qxh5 {[%emt 0:00:35]} Qc1+ {[%emt 0:00:10]} 45. Kh2 {[%emt 0:00:26]} Qc7+ {[%emt 0:00:40]} 46. Kg2 {[%emt 0:00:29]} Qc6+ {[%emt 0:00:19]} 47. f3 {[%emt 0:00:29]} Qc2+ {[%emt 0:00:11]} 48. Kg3 {[%emt 0:00:11]} Qc7+ {[%emt 0:01:13]} 49. f4 {[%emt 0:00:15]} Qc3 {[%emt 0:00:17]} 50. Qh7+ {[%emt 0:00:21]} Kf8 {[%emt 0:00:11]} 51. Qh8+ {[%emt 0:00:41]} Ke7 {[%emt 0:00:05]} 52. Qxc3 {[%emt 0:00:26]} Rxc3 {[%emt 0:00:02]} 53. Kg4 {[%emt 0:00:12]} Ra3 {[%emt 0:00:14]} 54. Re3+ {[%emt 0:00:14]} Kf8 {[%emt 0:00:12]} 55. Kf5 {[%emt 0:00:44]} Rxa2 {[%emt 0:01:11]} 56. Kf6 {[%emt 0:00:31]} Rc2 {[%emt 0:00:08]} 57. d4 {[%emt 0:00:46]} Rc6+ {[%emt 0:00:06]} 58. Kf5 {[%emt 0:00:15]} a5 {[%emt 0:00:18]} 59. d5 {[%emt 0:00:21]} Rd6 {[%emt 0:00:09]} 60. Ke5 {[%emt 0:00:28]} Ke7 {[%emt 0:00:27]} 61. Kd4+ {[%emt 0:01:04]} Kd7 {[%emt 0:00:15]} 62. f5 {[%emt 0:00:19]} Kd8 {[%emt 0:00:38]} 63. Rh3 {[%emt 0:00:57]} a4 {[%emt 0:03:08]} 64. Ra3 {[%emt 0:00:51]} b5 {[%emt 0:00:12]} 65. Kc5 {[%emt 0:00:27]} Kd7 {[%emt 0:01:08]} 66. Rd3 {[%emt 0:00:22]} Ra6 {[%emt 0:00:38]} 67. Kxb5 {[%emt 0:00:22]} Ra8 {[%emt 0:00:18]} 68. Kb4 {[%emt 0:00:41]} Rg8 {[%emt 0:00:27]} 69. Rg3 {[%emt 0:00:27]} Kd6 {[%emt 0:00:09]} 70. Kc4 {[%emt 0:00:39]} a3 {[%emt 0:01:18]} 71. Rxa3 {[%emt 0:00:27]} Rxg5 {[%emt 0:00:03]} 72. Ra6+ {[%emt 0:00:22]} Kd7 {[%emt 0:00:57]} 73. Ra7+ {[%emt 0:00:43]} Ke8 {[%emt 0:00:07]} 74. f6 {[%emt 0:00:22]} Rf5 {[%emt 0:00:43]} 75. Ra6 {[%emt 0:00:11]} Rf1 {[%emt 0:00:23]} 76. Ra8+ {[%emt 0:00:55]} Kd7 {[%emt 0:00:04]} 77. Ra7+ {[%emt 0:00:23]} Ke8 {[%emt 0:00:12]} 78. Ra6 {[%emt 0:00:35]} Kd7 {[%emt 0:00:09]} 79. Ra7+ {[%emt 0:00:34]} Ke8 {[%emt 0:02:25]} 80. Ra6 {[%emt 0:01:07]} 1/2-1/2

[Event "Austrian Championship Girls-U14 2024"]
[Site "Fuerstenfeld"]
[Date "2024.05.31"]
[Round "4.4"]
[White "Lahl, Sophie"]
[Black "Wang, Yihan"]
[Result "1/2-1/2"]
[ECO "D05"]
[WhiteElo "1519"]
[BlackElo "1516"]
[Annotator "NA RC"]
[PlyCount "59"]
[EventDate "2024.05.28"]
[EventType "swiss"]
[EventCountry "AUT"]
[SourceTitle "playchess.com"]
[Source "ChessBase"]
[SourceQuality "1"]
[TimeControl "5400+30"]

1. d4 {[%emt 0:00:02]} d5 {[%emt 0:00:09]} 2. Nf3 {[%emt 0:00:05]} Nf6 {[%emt 0:00:16]} 3. e3 {[%emt 0:00:07]} e6 {[%emt 0:00:17]} 4. b3 {[%emt 0:00:18]} Bd6 {[%emt 0:00:43]} 5. Bb2 {[%emt 0:00:32]} Qe7 {[%emt 0:00:21]} 6. Nbd2 {[%emt 0:00:20]} O-O {[%emt 0:00:58]} 7. Bd3 {[%emt 0:00:08]} b6 {[%emt 0:00:35]} 8. O-O {[%emt 0:00:11]} Ba6 {[%emt 0:00:49]} 9. Bxa6 {[%emt 0:00:37]} Nxa6 {[%emt 0:00:18]} 10. a3 {[%emt 0:00:36]} c5 {[%emt 0:02:03]} 11. Re1 {[%emt 0:00:46]} Qb7 {[%emt 0:03:50]} 12. Ne5 {[%emt 0:00:41]} Nd7 {[%emt 0:03:02]} 13. f4 {[%emt 0:00:16]} Nxe5 {[%emt 0:02:11]} 14. dxe5 {[%emt 0:00:09]} Be7 {[%emt 0:00:28]} 15. Qg4 {[%emt 0:00:42]} Qd7 {[%emt 0:01:59]} 16. Nf3 {[%emt 0:01:18]} f6 {[%emt 0:02:50]} 17. Rad1 {[%emt 0:00:45]} Rad8 {[%emt 0:06:17]} 18. c4 {[%emt 0:01:36]} Qc6 {[%emt 0:02:00]} 19. cxd5 {[%emt 0:02:12]} exd5 {[%emt 0:01:54]} 20. exf6 {[%emt 0:01:31]} Bxf6 {[%emt 0:00:31]} 21. Bxf6 {[%emt 0:01:42]} Qxf6 {[%emt 0:02:26]} 22. Ne5 {[%emt 0:01:54]} Rfe8 {[%emt 0:05:58]} 23. Rd2 {[%emt 0:03:42]} Qe6 {[%emt 0:02:20]} 24. Qxe6+ {[%emt 0:00:49]} Rxe6 {[%emt 0:00:12]} 25. Red1 {[%emt 0:00:37]} Nc7 {[%emt 0:00:56]} 26. Rc1 {[%emt 0:01:20]} Ne8 {[%emt 0:02:23]} 27. Rcd1 {[%emt 0:03:01]} Nf6 {[%emt 0:01:12]} 28. g4 {[%emt 0:01:54]} Red6 {[%emt 0:02:20]} 29. Nc4 {[%emt 0:04:07]} R6d7 {[%emt 0:01:35]} 30. Ne5 {[%emt 0:00:27]} 1/2-1/2